fUST/lending_fUST_20240705
["ID","MTS","AMOUNT","RATE_DAILY","PERIOD"]
[331282655,1720177843535,-11387.62,0.00035616,3]
[331282657,1720177843545,-9489.69,0.00035616,3]
[331282659,1720177843555,-2874.29556943,0.00035677,2]
[331282661,1720177843565,-150.73437924,0.00035984,7]
[331282663,1720177843574,-1274.94810996,0.00035999,4]
[331282664,1720177843585,-1556.2663267,0.00035999,4]
[331282665,1720177843596,-2500.0,0.00036,2]
[331282666,1720177843605,-3204.50771687,0.00036341,4]
[331282667,1720177843618,-5364.70851511,0.00036341,4]
[331282668,1720177843628,-1487.06325984,0.00036351,4]
[331282669,1720177843639,-1181.31020319,0.00036351,4]
[331282670,1720177843648,-158.66408624,0.00036576,7]
[331282671,1720177843658,-1420.0684741,0.00036732,2]
[331282672,1720177843668,-2000.89973827,0.0003701,4]
[331282673,1720177843677,-2000.89973827,0.0003701,4]
[331282674,1720177843686,-1916.08274499,0.00037085,4]
[331282675,1720177843695,-152.80906433,0.00037297,7]
[331282676,1720177843705,-1029.08397233,0.00037523,4]
[331282677,1720177843715,-1500.0,0.00037523,4]
[331282678,1720177843725,-151.57276841,0.00037712,7]
[331282679,1720177843734,-714.79757036,0.00037807,4]
[331282680,1720177843744,-152.80906433,0.00037846,7]
[331282682,1720177843754,-589.98446063,0.00037899,4]
[331282683,1720177843764,-531.43672027,0.00037999,30]
[331282685,1720177843773,-642.76758109,0.00038999,4]
[331282687,1720177843783,-1000.0,0.00039,39]
[331282690,1720177843793,-154.88383712,0.00039167,4]
[331282692,1720177843807,-394.11469993,0.00039167,4]
[331282694,1720177843817,-159.89896521,0.00039167,2]
[331282696,1720177843827,-360.48479037,0.00039177,4]
[331282698,1720177843836,-235.33275104,0.00039177,4]
[331282700,1720177843846,-586.6193706,0.00039178,2]
[331282702,1720177843855,-154.88383712,0.00039393,10]
[331282704,1720177843865,-182.56981161,0.00039393,4]
[331282706,1720177843874,-393.89323921,0.00039393,4]
[331282707,1720177843884,-208.58026971,0.00039393,4]
[331282709,1720177843893,-302.38052482,0.00039393,4]
[331282711,1720177843903,-550.602658,0.00039394,2]
[331282713,1720177843912,-150.348361,0.00039615,2]
[331282715,1720177843921,-6484.93730598,0.00039989,5]
[331282808,1720177848416,-2146.27761673,0.00035259,14]
[331282811,1720177848427,-1091.40807892,0.00037807,21]
[331282814,1720177848436,-496.88522416,0.00037899,4]
[331282817,1720177848447,-264.86125261,0.00038499,2]
[331282820,1720177848456,-154.88383712,0.00038999,4]
[331282823,1720177848466,-158.13258682,0.00039167,4]
[331282826,1720177848478,-306.40720501,0.00039177,4]
[331282829,1720177848489,-154.88383712,0.00039177,4]
[331282832,1720177848499,-293.3096853,0.00039178,2]
[331282835,1720177848511,-2084.278926,0.00039989,5]
[331282838,1720177848521,-157.39797893,0.00039994,4]
[331282841,1720177848531,-351.32038796,0.00039994,30]
[331282843,1720177848542,-215.10199221,0.00039994,4]
[331282845,1720177848552,-256.53141225,0.00039994,2]
[331282847,1720177848562,-502.97380463,0.00039999,120]
[331282849,1720177848576,-1276.65729188,0.00039999,120]
[331282852,1720177848931,-575.02782234,0.00039999,120]
[331282854,1720177848943,-3003.85,0.00039999,120]
[331283111,1720179033257,-1301.0,0.00015219,2]
[331283145,1720179040384,-5815.92119955,0.00015219,2]
[331283147,1720179040398,-17783.07880045,0.00015219,2]
[331283149,1720179040409,-461.7864594,0.00015366,2]
[331283150,1720179040419,-588.68024058,0.00016143,2]
[331283151,1720179040433,-2637.14173433,0.00016144,2]
[331283152,1720179040443,-300.0,0.00016243,2]
[331283153,1720179040454,-500.0,0.00016243,2]
[331283154,1720179040468,-500.0,0.00016243,2]
[331283155,1720179040479,-500.0,0.00016243,2]
[331283156,1720179040490,-500.0,0.00016243,2]
[331283157,1720179040502,-158.80505934,0.00016243,2]
[331283158,1720179040514,-248.66964502,0.00016243,2]
[331283159,1720179040528,-500.0,0.00016243,2]
[331283160,1720179040540,-500.0,0.00016243,2]
[331283161,1720179040551,-628.68646531,0.00016243,2]
[331283162,1720179040562,-500.0,0.00016243,2]
[331283163,1720179040573,-500.0,0.00016243,2]
[331283164,1720179040584,-500.0,0.00016243,2]
[331283165,1720179040595,-500.0,0.00016243,2]
[331283166,1720179040606,-500.0,0.00016243,2]
[331283167,1720179040617,-500.0,0.00016243,2]
[331283168,1720179040627,-500.0,0.00016243,2]
[331283169,1720179040638,-383.97827987,0.00016243,2]
[331283170,1720179040648,-500.0,0.00016243,2]
[331283171,1720179040660,-500.0,0.00016243,2]
[331283172,1720179040670,-500.0,0.00016243,2]
[331283174,1720179040685,-593.92114202,0.00016243,2]
[331283176,1720179040704,-500.0,0.00016243,2]
[331283177,1720179040715,-23313.1677545,0.00016244,2]
[331283179,1720179040726,-23313.1677545,0.00016245,2]
[331283181,1720179040737,-100000.0,0.00016254,2]
[331283182,1720179040748,-57214.94712358,0.00016254,2]
[331283184,1720179040758,-34932.27430829,0.00016255,2]
[331283186,1720179040768,-42226.30858632,0.00016255,2]
[331283187,1720179040779,-420.0,0.00017867,2]
[331283189,1720179040790,-23313.1677545,0.00018889,2]
[331283191,1720179040802,-250.0,0.00019041,2]
[331283193,1720179040812,-587.0,0.00019654,2]
[331283195,1720179040823,-584.429454,0.00021096,2]
[331283197,1720179040834,-823.0,0.00021619,2]
[331283198,1720179040845,-2637.14173431,0.00022082,2]
[331283200,1720179040856,-150.0,0.00022675,2]
[331283202,1720179040867,-200.0,0.00023,2]
[331283204,1720179040877,-1088.67887821,0.00023055,2]
[331283206,1720179040887,-198.389597,0.0002318,2]
[331283208,1720179040897,-250.0,0.00023223,2]
[331283209,1720179040907,-166.666666,0.00023478,2]
[331283211,1720179040918,-1152.0,0.00023781,2]
[331283213,1720179040928,-166.666666,0.00024118,2]
[331283215,1720179040939,-643.43394391,0.00024208,2]
[331283216,1720179040950,-159.456528,0.00024318,2]
[331283217,1720179040962,-3000.0,0.00024476,2]
[331283218,1720179040973,-200.0,0.00024658,15]
[331283219,1720179040983,-380.0,0.00024658,2]
[331283220,1720179040993,-166.666666,0.00024759,2]
[331283221,1720179041007,-159.2983416,0.00024884,2]
[331283222,1720179041048,-23313.1677545,0.00025239,3]
[331283223,1720179041077,-4500.42442197,0.00025299,2]
[331283224,1720179041113,-166.666666,0.00025399,2]
[331283226,1720179041124,-621.1716972,0.00025419,2]
[331283227,1720179041134,-46626.335509,0.00025491,3]
[331283228,1720179041144,-52100.07365113,0.00025501,2]
[331283230,1720179041154,-152.80906433,0.00025795,2]
[331283231,1720179041164,-166.666666,0.00026039,2]
[331283232,1720179041175,-1613.0,0.00026159,2]
[331283233,1720179041185,-3000.0,0.000265,2]
[331283234,1720179041195,-3000.0,0.0002651,2]
[331283235,1720179041206,-3000.0,0.0002652,2]
[331283236,1720179041217,-5163.924926,0.0002653,2]
[331283237,1720179041230,-166.666666,0.00026679,2]
[331283238,1720179041242,-620.05858486,0.0002669,2]
[331283239,1720179041252,-584.429454,0.00027195,2]
[331283240,1720179041262,-23313.1677545,0.00027387,3]
[331283241,1720179041273,-500.0,0.00027397,30]
[331283242,1720179041282,-500.0,0.00027397,2]
[331283243,1720179041292,-500.0,0.00027397,2]
[331283244,1720179041303,-500.0,0.00027397,2]
[331283245,1720179041313,-500.0,0.00027397,2]
[331283246,1720179041323,-500.0,0.00027397,2]
[331283247,1720179041332,-500.0,0.00027397,2]
[331283248,1720179041343,-500.0,0.00027397,2]
[331283249,1720179041353,-500.0,0.00027397,2]
[331283250,1720179041367,-500.0,0.00027397,2]
[331283251,1720179041376,-500.0,0.00027397,2]
[331283252,1720179041386,-500.0,0.00027397,2]
[331283253,1720179041398,-500.0,0.00027397,2]
[331283254,1720179041410,-500.0,0.00027397,2]
[331283255,1720179041422,-500.0,0.00027397,2]
[331283256,1720179041434,-500.0,0.00027397,2]
[331283257,1720179041444,-500.0,0.00027397,2]
[331283258,1720179041454,-500.0,0.00027397,2]
[331283259,1720179041467,-500.0,0.00027397,2]
[331283260,1720179041480,-500.0,0.00027397,2]
[331283261,1720179041490,-224.8099451,0.00027397,120]
[331283262,1720179041501,-160.13983905,0.0002783,2]
[331283263,1720179041512,-150.73437924,0.00027843,2]
[331283264,1720179041521,-30000.0,0.00027999,2]
[331283265,1720179041531,-12128.31934886,0.00028,30]
[331283266,1720179041540,-2637.14173431,0.00028019,2]
[331283267,1720179041550,-620.00292924,0.00028024,2]
[331283268,1720179041560,-1322.0,0.00028775,2]
[331283269,1720179041570,-4500.42442197,0.00028949,2]
[331283270,1720179041580,-2000.0,0.00029313,2]
[331283271,1720179041589,-2000.0,0.00029321,2]
[331283272,1720179041600,-2000.0,0.0002933,2]
[331283273,1720179041611,-2000.0,0.00029339,2]
[331283274,1720179041623,-2000.0,0.00029348,2]
[331283275,1720179041632,-2000.0,0.00029357,2]
[331283276,1720179041642,-151.57276841,0.00029489,2]
[331283277,1720179041653,-23313.1677545,0.00029793,3]
[331283278,1720179041663,-23313.1677545,0.00029793,3]
[331283279,1720179041673,-11030.4600567,0.00029813,2]
[331283280,1720179041683,-17247.80566422,0.00029823,2]
[331283281,1720179041693,-504.49555993,0.00030184,2]
[331283282,1720179041703,-300.0,0.00030336,30]
[331283283,1720179041717,-158.66408624,0.00031542,7]
[331283284,1720179041729,-158.66408624,0.00031766,7]
[331283285,1720179041739,-156.25095608,0.0003216,7]
[331283286,1720179041749,-152.80906433,0.00032458,7]
[331283287,1720179041759,-23313.1677545,0.00032589,4]
[331283288,1720179041769,-4500.42442197,0.000326,2]
[331283289,1720179041780,-584.429454,0.00033295,2]
[331283290,1720179041790,-4590.21651176,0.00033741,15]
[331283291,1720179041800,-25240.95353101,0.00033741,15]
[331283292,1720179041810,-88888.0,0.00033742,5]
[331283293,1720179041821,-9380.78685145,0.00033852,4]
[331283294,1720179041832,-2637.14173431,0.00033957,2]
[331283295,1720179041843,-152.80906433,0.00034304,7]
[331283296,1720179041853,-12918.73636798,0.00034317,4]
[331283297,1720179041864,-150.30016482,0.00034329,7]
[331283298,1720179041874,-5331.37523403,0.00034491,7]
[331283299,1720179041885,-4136.6527888,0.0003455,4]
[331283300,1720179041895,-6329.73360915,0.00034563,4]
[331283301,1720179041905,-4591.6811785,0.0003457,2]
[331283302,1720179041915,-1029.08397233,0.00034574,4]
[331283303,1720179041926,-4216.21563341,0.00034585,2]
[331283304,1720179041936,-4205.92284105,0.00034634,4]
[331283305,1720179041946,-4205.92284105,0.00034634,4]
[331283306,1720179041957,-224.230914,0.00034634,7]
[331283307,1720179041974,-214.4209,0.00034642,7]
[331283308,1720179041984,-214.4209,0.00034642,7]
[331283309,1720179041994,-915.06377454,0.00034669,2]
[331283310,1720179042004,-2316.79226907,0.0003467,4]
[331283311,1720179042014,-2857.31869309,0.00034672,4]
[331283312,1720179042032,-642.76758109,0.00034672,4]
[331283313,1720179042046,-3239.92770371,0.0003468,4]
[331283314,1720179042057,-198.389597,0.0003477,2]
[331283315,1720179042067,-3252.46185806,0.00034811,4]
[331283316,1720179042077,-2196.40771411,0.00034999,4]
[331283317,1720179042088,-393.89323921,0.00034999,4]
[331283318,1720179042098,-1086.852493,0.00034999,4]
[331283319,1720179042108,-2846.41091448,0.00035259,4]
[331283320,1720179042119,-360.48479037,0.00035292,4]
[331283321,1720179042129,-2000.89973827,0.00035292,4]
[331283322,1720179042140,-235.33275104,0.00035581,4]
[331283323,1720179042149,-13378.11390107,0.00035615,4]
[331283324,1720179042159,-435.0,0.00035615,2]
[331283325,1720179042170,-1927.48066713,0.00035615,4]
[331283326,1720179042180,-211.50108117,0.00035615,4]
[331283327,1720179042190,-6590.06,0.00035616,3]
[331283328,1720179042201,-151.57276841,0.00035911,7]
[331283329,1720179042211,-150.73437924,0.0003599,7]
[331283330,1720179042230,-154.88383712,0.00035999,4]
[331283331,1720179042242,-1500.0,0.00035999,4]
[331283332,1720179042253,-1500.68966724,0.00035999,2]
[331283333,1720179042263,-2500.0,0.00036,2]
[331283334,1720179042274,-686.21104459,0.00036,30]
[331283335,1720179042285,-154.88383712,0.00036239,4]
[331283336,1720179042295,-154.88383712,0.00036239,4]
[331283337,1720179042306,-173.66290897,0.00036239,4]
[331283338,1720179042317,-4500.42442197,0.0003625,2]
[331283339,1720179042328,-351.32038796,0.00036351,30]
[331283340,1720179042338,-5018.1,0.000365,35]
[331283341,1720179042348,-1420.0684741,0.00036732,2]
[331283342,1720179042358,-152.80906433,0.00036833,7]
[331283343,1720179042368,-155.57235672,0.0003701,4]
[331283344,1720179042378,-158.66408624,0.00037501,7]
[331283345,1720179042540,-264.58665964,0.00037523,4]
[331283346,1720179042551,-1484.29833384,0.00037523,4]
[331283347,1720179042562,-1110.8584379,0.00037523,4]
[331283348,1720179042572,-1181.31020319,0.00037523,4]
[331283349,1720179042582,-1204.52031051,0.00037587,21]
[331283350,1720179042592,-151.57276841,0.00037623,7]
[331283351,1720179042602,-150.73437924,0.00037737,7]
[331283352,1720179042613,-598.68283136,0.00037999,4]
[331283353,1720179042623,-394.11469993,0.00038229,4]
[331283354,1720179042632,-293.3096853,0.00038356,2]
[331283355,1720179042643,-293.3096853,0.00038356,2]
[331283356,1720179042652,-293.3096853,0.00038356,2]
[331283357,1720179042662,-152.80906433,0.00038493,7]
[331283358,1720179042672,-264.86125261,0.00038499,2]
[331283359,1720179042683,-10000.0,0.000385,40]
[331283360,1720179042692,-156.25095608,0.00038733,7]
[331283361,1720179042703,-151.57276841,0.00038865,7]
[331283362,1720179042712,-393.8702915,0.00038999,4]
[331283363,1720179042726,-415.27387509,0.00038999,4]
[331283364,1720179042736,-265.15316548,0.00038999,4]
[331283365,1720179042746,-371.39375676,0.00039177,4]
[331283366,1720179042756,-215.10199221,0.00039177,4]
[331283367,1720179042768,-215.10199221,0.00039177,4]
[331283368,1720179042777,-160.13983905,0.00039304,7]
[331283369,1720179042787,-154.88383712,0.00039393,10]
[331283370,1720179042796,-256.53141225,0.00039393,2]
[331283371,1720179042806,-155.04482031,0.00039393,4]
[331283372,1720179042816,-584.429454,0.00039394,2]
[331283373,1720179042826,-150.73437924,0.00039544,7]
[331283374,1720179042835,-2637.14173431,0.00039895,2]
[331283375,1720179042845,-5000.0,0.000399,7]
[331283376,1720179042855,-5000.0,0.000399,30]
[331283377,1720179042865,-4500.42442197,0.000399,2]
[331283378,1720179042874,-42894.27588912,0.00039987,2]
[331283379,1720179042884,-14641.49108115,0.00039999,120]
[331283380,1720179042894,-3990.00210664,0.00039999,4]
[331283381,1720179042904,-284.22582068,0.00039999,3]
[331283382,1720179042914,-1025.42362351,0.00039999,4]
[331283383,1720179042924,-303.02802488,0.00039999,4]
[331283384,1720179042934,-221.51829675,0.00039999,4]
[331283385,1720179042943,-253.98954123,0.00039999,4]
[331283386,1720179042954,-5606.64343783,0.00039999,4]
[331283387,1720179042964,-2244.84007704,0.00039999,120]
[331283388,1720179042975,-304.31082142,0.00039999,4]
[331283389,1720179042984,-169.50434797,0.00039999,4]
[331283390,1720179042994,-191.03923068,0.00039999,2]
[331283391,1720179043003,-284.26271461,0.00039999,2]
[331283392,1720179043013,-1260.01242543,0.00039999,4]
[331283393,1720179043023,-1260.01242543,0.00039999,4]
[331283394,1720179043036,-12335.03085513,0.0004,30]
[331283395,1720179043059,-151.232914,0.0004,7]
[331283396,1720179043073,-212.012607,0.0004,7]
[331283397,1720179043086,-212.012607,0.0004,7]
[331283398,1720179043096,-214.4209,0.0004,7]
[331283399,1720179043106,-214.4209,0.0004,7]
[331283400,1720179043116,-224.230914,0.0004,7]
[331283401,1720179043126,-508.53270738,0.00040228,4]
[331283402,1720179043136,-152.80906433,0.00040378,30]
[331283403,1720179043146,-158.66408624,0.00040994,30]
[331283404,1720179043155,-2500.0,0.00041,5]
[331283405,1720179043165,-4168.88311827,0.00041095,120]
[331283406,1720179043175,-978.04,0.00041095,30]
[331283407,1720179043185,-150.73437924,0.00041144,30]
[331283408,1720179043194,-151.0,0.0004126,120]
[331283409,1720179043203,-2132.69930736,0.00041314,4]
[331283410,1720179043213,-155.34332,0.00041314,4]
[331283411,1720179043224,-151.0,0.00041391,14]
[331283412,1720179043236,-151.0,0.00041391,14]
[331283413,1720179043246,-228.341063,0.00041391,14]
[331283414,1720179043255,-151.0,0.00041391,14]
[331283415,1720179043265,-151.0,0.00041391,14]
[331283416,1720179043274,-151.0,0.00041391,14]
[331283417,1720179043285,-165.722,0.00041511,2]
[331283418,1720179043294,-999.759,0.00041511,2]
[331283419,1720179043304,-151.0,0.00041863,120]
[331283420,1720179043314,-1457.08355424,0.00041999,4]
[331283421,1720179043323,-268.8794469,0.000425,30]
[331283422,1720179043334,-10000.0,0.000425,50]
[331283423,1720179043344,-205.852613,0.000425,14]
[331283424,1720179043356,-205.852613,0.000425,14]
[331283425,1720179043365,-166.927114,0.000425,14]
[331283426,1720179043376,-151.0,0.000425,14]
[331283427,1720179043390,-166.927114,0.000425,14]
[331283428,1720179043400,-151.0,0.000425,14]
[331283429,1720179043410,-424.024018,0.000425,14]
[331283430,1720179043423,-424.024018,0.000425,14]
[331283431,1720179043435,-151.0,0.00042521,120]
[331283432,1720179043445,-270.75084604,0.00042629,4]
[331283433,1720179043455,-379.04509844,0.000428,120]
[331283434,1720179043467,-181.33422444,0.00042958,4]
[331283435,1720179043479,-156.0,0.00043,90]
[331283436,1720179043489,-232.401,0.00043281,2]
[331283437,1720179043499,-150.059,0.00043281,2]
[331283438,1720179043513,-151.57276841,0.00043492,30]
[331283439,1720179043524,-154.88383712,0.00043615,4]
[331283440,1720179043535,-276.77676008,0.00043615,4]
[331283441,1720179043545,-158.66408624,0.00043726,30]
[331283442,1720179043555,-151.0,0.00043726,120]
[331283443,1720179043564,-151.0,0.00043781,120]
[331283444,1720179043574,-3809.2136136,0.000438,60]
[331283445,1720179043584,-154.88383712,0.00043834,4]
[331283446,1720179043594,-344.586755,0.00043836,7]
[331283447,1720179043604,-344.586755,0.00043836,7]
[331283448,1720179043613,-219.319926,0.00043876,14]
[331283449,1720179043623,-219.319926,0.00043876,14]
[331283450,1720179043633,-166.10106,0.00043876,14]
[331283451,1720179043643,-166.10106,0.00043876,14]
[331283452,1720179043653,-156.92185569,0.00044,120]
[331283453,1720179043662,-1000.0,0.00044,44]
[331283454,1720179043672,-151.57276841,0.00044004,30]
[331283455,1720179043683,-300.0,0.00044047,7]
[331283456,1720179043693,-241.0547,0.00044053,2]
[331283457,1720179043702,-300.0,0.00044172,7]
[331283458,1720179043717,-373.0,0.000442,20]
[331283459,1720179043730,-300.0,0.00044236,7]
[331283460,1720179043740,-156.34779854,0.00044274,2]
[331283461,1720179043750,-151.57276841,0.00044329,30]
[331283462,1720179043760,-150.0,0.00044511,2]
[331283463,1720179043770,-44567.62301981,0.00045,120]
[331283539,1720179048102,-337.78812106,0.000209,2]
[331283540,1720179048112,-145.89268235,0.00029803,2]
[331283551,1720179048191,-550.56588508,0.00029803,2]
[331284343,1720179591597,195.44097058,0.000139,2]
[331284358,1720179603235,10436.03230733,0.00030388,30]
[331284480,1720180236450,-10100.069073,0.00014972,2]
[331284512,1720180245132,-14799.930927,0.00014972,2]
[331284513,1720180245142,-300.0,0.00014997,2]
[331284514,1720180245154,-3383.22250901,0.00014998,2]
[331284515,1720180245166,-7647.23754769,0.00014998,2]
[331284516,1720180245176,-9615.23092531,0.00014998,2]
[331284518,1720180245185,-6981.98564229,0.00014998,2]
[331284520,1720180245195,-3000.0,0.00015249,2]
[331284522,1720180245205,-500.0,0.00016242,2]
[331284525,1720180245216,-500.0,0.00016242,2]
[331284528,1720180245226,-500.0,0.00016242,2]
[331284531,1720180245236,-158.80505934,0.00016242,2]
[331284534,1720180245257,-248.66964502,0.00016242,2]
[331284538,1720180245268,-628.68646531,0.00016242,2]
[331284542,1720180245277,-500.0,0.00016242,2]
[331284545,1720180245287,-500.0,0.00016242,2]
[331284549,1720180245297,-500.0,0.00016242,2]
[331284551,1720180245307,-500.0,0.00016242,2]
[331284553,1720180245317,-500.0,0.00016242,2]
[331284555,1720180245326,-500.0,0.00016242,2]
[331284557,1720180245336,-46626.335509,0.00016244,2]
[331284559,1720180245348,-67048.51114834,0.00016254,2]
[331284561,1720180245358,-57214.94712358,0.00016254,2]
[331284563,1720180245367,-42226.30858632,0.00016255,2]
[331284565,1720180245386,-5876.04190101,0.00016397,2]
[331284567,1720180245396,-420.0,0.00016497,2]
[331284569,1720180245406,-587.0,0.00018146,2]
[331284571,1720180245415,-23313.1677545,0.00018889,2]
[331284572,1720180245427,-166.666666,0.00019003,2]
[331284573,1720180245436,-250.0,0.00019041,2]
[331284574,1720180245446,-159.459632,0.00019178,2]
[331284576,1720180245455,-440.6010737,0.00019178,4]
[331284578,1720180245464,-159.463405,0.00019185,2]
[331284580,1720180245473,-166.666666,0.00019521,2]
[331284582,1720180245483,-823.0,0.00019961,2]
[331284583,1720180245492,-166.666666,0.00020039,2]
[331284584,1720180245501,-166.666666,0.00020557,2]
[331284585,1720180245510,-675.57624208,0.000209,2]
[331284586,1720180245520,-166.666666,0.00021075,2]
[331284587,1720180245529,-584.429454,0.00021096,2]
[331284588,1720180245546,-5876.04190098,0.00021177,2]
[331284589,1720180245556,-501.91198949,0.000212,2]
[331284590,1720180245569,-166.666666,0.00021593,2]
[331284591,1720180245579,-1152.0,0.00021957,2]
[331284592,1720180245588,-23313.1677545,0.00022062,3]
[331284594,1720180245598,-17247.80566422,0.00022942,2]
[331284596,1720180245608,-17247.80566422,0.00022942,2]
[331284598,1720180245617,-6364.3639553,0.00023,2]
[331284600,1720180245630,-200.0,0.00023,2]
[331284602,1720180245639,-1088.67887821,0.00023076,2]
[331284604,1720180245651,-156.25095608,0.00023206,2]
[331284606,1720180245661,-152.80906433,0.00023446,2]
[331284607,1720180245670,-1613.0,0.00024153,2]
[331284608,1720180245680,-643.43394391,0.0002423,2]
[331284610,1720180245690,-3968.06642419,0.0002448,2]
[331284612,1720180245699,-694.363588,0.00024806,2]
[331284613,1720180245708,-200.0,0.00024806,15]
[331284615,1720180245718,-23313.1677545,0.0002499,3]
[331284617,1720180245727,-500.0,0.00025,30]
[331284619,1720180245737,-500.0,0.00025,30]
[331284621,1720180245747,-537.0,0.00025,30]
[331284623,1720180245756,-12256.62261502,0.00025,60]
[331284624,1720180245767,-150.0,0.00025405,2]
[331284626,1720180245776,-621.1716972,0.00025441,2]
[331284628,1720180245786,-52100.07365113,0.00025501,2]
[331284630,1720180245796,-46626.335509,0.00025859,3]
[331284632,1720180245805,-250.0,0.00025952,2]
[331284633,1720180245815,-5876.04190098,0.00025956,2]
[331284635,1720180245828,-4462.98107428,0.00026,2]
[331284636,1720180245837,-152.80906433,0.00026226,2]
[331284637,1720180245847,-151.57276841,0.00026318,2]
[331284638,1720180245856,-150.0,0.000265,2]
[331284639,1720180245866,-1622.0,0.00026568,2]
[331284641,1720180245879,-4711.13030053,0.00026574,2]
[331284643,1720180245889,-4711.13030053,0.00026574,2]
[331284645,1720180245899,-620.05858486,0.00026713,2]
[331284647,1720180245910,-3078.85157566,0.00026848,2]
[331284649,1720180245920,-88888.0,0.00027084,3]
[331284651,1720180245929,-584.429454,0.00027195,2]
[331284653,1720180245939,-23313.1677545,0.00027387,3]
[331284655,1720180245948,-915.06377454,0.00027397,2]
[331284657,1720180245957,-500.0,0.00027397,2]
[331284659,1720180245966,-500.0,0.00027397,2]
[331284661,1720180245977,-500.0,0.00027397,2]
[331284663,1720180245986,-500.0,0.00027397,2]
[331284665,1720180245996,-500.0,0.00027397,2]
[331284666,1720180246005,-500.0,0.00027397,2]
[331284667,1720180246014,-500.0,0.00027397,2]
[331284668,1720180246023,-500.0,0.00027397,2]
[331284669,1720180246032,-500.0,0.00027397,2]
[331284670,1720180246041,-188.1945247,0.00027397,2]
[331284671,1720180246050,-500.0,0.00027397,2]
[331284672,1720180246059,-500.0,0.00027397,2]
[331284673,1720180246068,-500.0,0.00027397,2]
[331284674,1720180246077,-500.0,0.00027397,2]
[331284675,1720180246087,-500.0,0.00027397,2]
[331284676,1720180246096,-500.0,0.00027397,2]
[331284677,1720180246105,-500.0,0.00027397,2]
[331284678,1720180246114,-500.0,0.00027397,2]
[331284679,1720180246127,-500.0,0.00027397,2]
[331284680,1720180246136,-224.8099451,0.00027397,120]
[331284681,1720180246145,-12193.72029826,0.00028,30]
[331284682,1720180246154,-620.00292924,0.00028049,2]
[331284683,1720180246163,-3012.74648721,0.00028081,2]
[331284684,1720180246172,-152.80906433,0.00028141,2]
[331284685,1720180246181,-152.80906433,0.00028347,2]
[331284686,1720180246191,-150.73437924,0.00028786,2]
[331284687,1720180246200,-1087.36634063,0.00029636,2]
[331284689,1720180246210,-4591.6811785,0.00029703,2]
[331284690,1720180246220,-150.73437924,0.00029753,2]
[331284692,1720180246229,-30000.0,0.00029803,2]
[331284695,1720180246238,-23313.1677545,0.00029869,3]
[331284697,1720180246248,-3130.40828598,0.00029903,4]
[331284700,1720180246258,-150.05901005,0.0003,7]
[331284704,1720180246268,-949.999999,0.0003,30]
[331284707,1720180246277,-158.66408624,0.00030136,7]
[331284710,1720180246287,-151.57276841,0.0003033,7]
[331284713,1720180246296,-473.66,0.00030336,30]
[331284716,1720180246306,-4590.21651176,0.00030363,15]
[331284720,1720180246315,-300.0,0.00030363,2]
[331284723,1720180246324,-509.7935155,0.00030363,2]
[331284725,1720180246334,-288.54873536,0.00030363,2]
[331284727,1720180246344,-317.6820451,0.00030363,2]
[331284728,1720180246354,-283.45664934,0.00030363,2]
[331284729,1720180246364,-5000.003823,0.00030363,4]
[331284730,1720180246377,-153.05087922,0.00030363,2]
[331284731,1720180246386,-511.29611507,0.00030363,2]
[331284732,1720180246398,-587.92208219,0.00030363,2]
[331284733,1720180246409,-433.70222597,0.00030363,2]
[331284734,1720180246419,-221.53556508,0.00030363,2]
[331284735,1720180246430,-23313.1677545,0.00030378,4]
[331284736,1720180246440,-151.0,0.00030378,7]
[331284737,1720180246449,-151.0,0.00030378,7]
[331284738,1720180246459,-151.0,0.00030378,7]
[331284739,1720180246470,-284.26271461,0.00030388,2]
[331284740,1720180246479,-10000.0,0.00030388,10]
[331284741,1720180246492,-154.88383712,0.00030388,4]
[331284742,1720180246507,-284.22582068,0.00030388,3]
[331284743,1720180246516,-2244.84007704,0.00030388,30]
[331284744,1720180246527,-1464.89089073,0.00030388,4]